fUST/lending_fUST_20240828
["ID","MTS","AMOUNT","RATE_DAILY","PERIOD"]
[336404238,1724811042492,-500.0,0.00012328,2]
[336404239,1724811042502,-500.0,0.00012328,2]
[336404240,1724811042513,-1109.51,0.00012328,2]
[336404241,1724811042523,-3703.05,0.00012328,2]
[336404242,1724811042533,-5075.24,0.00012328,2]
[336404243,1724811042544,-500.0,0.00012328,2]
[336404244,1724811042554,-2860.58,0.00012328,2]
[336404245,1724811042564,-500.0,0.00012328,2]
[336404246,1724811042573,-736.85,0.00012328,2]
[336404247,1724811042583,-2840.33,0.00012328,2]
[336404248,1724811042593,-631.36,0.00012328,2]
[336404249,1724811042603,-1179.1,0.00012328,2]
[336404250,1724811042613,-500.0,0.00012328,2]
[336404251,1724811042622,-500.0,0.00012328,2]
[336404252,1724811042631,-1090.28,0.00012328,2]
[336404253,1724811042642,-2710.74,0.00012328,2]
[336404254,1724811042651,-2040.01,0.00012328,2]
[336404255,1724811042660,-500.0,0.00012328,2]
[336404256,1724811042674,-10747.29,0.00012328,2]
[336404257,1724811042683,-2545.58,0.00012328,2]
[336404258,1724811042692,-500.0,0.00012328,2]
[336404259,1724811042701,-500.0,0.00012328,2]
[336404260,1724811042711,-6200.24,0.00012328,2]
[336404261,1724811042720,-641.79,0.00012328,2]
[336404262,1724811042729,-500.0,0.00012328,2]
[336404263,1724811042739,-2706.11,0.00012328,2]
[336404264,1724811042748,-563.79,0.00012328,2]
[336404265,1724811042757,-435.0771508,0.00012419,2]
[336404266,1724811042766,-500.50433157,0.00012419,2]
[336404267,1724811042776,-1000.0,0.00012421,2]
[336404268,1724811042786,-223.73028006,0.00012516,2]
[336404269,1724811042795,-271.45216599,0.00012551,7]
[336404270,1724811042804,-404.8069796,0.00012551,2]
[336404271,1724811042814,-405.87789474,0.00012601,2]
[336404272,1724811042858,-2390.12,0.00012601,2]
[336404273,1724811042867,-310.3782227,0.00012601,2]
[336404274,1724811042877,-819.39,0.00012601,2]
[336404275,1724811042887,-500.0,0.00012602,2]
[336404276,1724811042896,-500.0,0.00012602,2]
[336404277,1724811042905,-500.0,0.00012602,2]
[336404278,1724811042914,-870.81,0.00012602,2]
[336404279,1724811042932,-211.822633,0.00012602,2]
[336404280,1724811042941,-211.822633,0.00012602,2]
[336404281,1724811042950,-477.953978,0.00012602,2]
[336404282,1724811042960,-477.953978,0.00012602,2]
[336404283,1724811042971,-151.0,0.00012602,2]
[336404284,1724811042980,-500.0,0.00012602,2]
[336404285,1724811042990,-223.274645,0.00012602,2]
[336404286,1724811042999,-223.274645,0.00012602,2]
[336404287,1724811043008,-341.32125659,0.00012602,2]
[336404288,1724811043019,-472.77796279,0.00012602,2]
[336404289,1724811043030,-500.0,0.00012602,2]
[336404290,1724811043038,-596.856377,0.00012602,2]
[336404291,1724811043048,-596.856377,0.00012602,2]
[336404292,1724811043058,-500.0,0.00012602,2]
[336404293,1724811043070,-747.201714,0.00012602,2]
[336404294,1724811043080,-747.201714,0.00012602,2]
[336404295,1724811043090,-275.61141307,0.00012602,2]
[336404296,1724811043100,-151.0,0.00012602,2]
[336404297,1724811043109,-203.06676,0.00012602,2]
[336404298,1724811043120,-151.0,0.00012602,2]
[336404299,1724811043132,-151.0,0.00012602,2]
[336404300,1724811043145,-151.0,0.00012602,2]
[336404301,1724811043156,-151.0,0.00012602,2]
[336404302,1724811043166,-816.43,0.00012602,2]
[336404303,1724811043182,-710.670337,0.00012602,2]
[336404304,1724811043192,-710.670337,0.00012602,2]
[336404305,1724811043202,-500.0,0.00012602,2]
[336404306,1724811043213,-176.425999,0.00012602,2]
[336404307,1724811043225,-549.44,0.00012602,2]
[336404308,1724811043236,-500.0,0.00012602,2]
[336404309,1724811043248,-176.425999,0.00012602,2]
[336404310,1724811043260,-549.44,0.00012602,2]
[336404311,1724811043269,-709.749602,0.00012602,2]
[336404312,1724811043278,-563.689985,0.00012602,2]
[336404313,1724811043288,-709.749602,0.00012602,2]
[336404314,1724811043299,-563.689985,0.00012602,2]
[336404315,1724811043308,-1109.51,0.00012602,2]
[336404316,1724811043318,-811.296743,0.00012602,2]
[336404317,1724811043327,-811.296743,0.00012602,2]
[336404318,1724811043337,-3703.05,0.00012602,2]
[336404319,1724811043347,-5075.24,0.00012602,2]
[336404320,1724811043357,-500.0,0.00012602,2]
[336404321,1724811043367,-2860.58,0.00012602,2]
[336404322,1724811043376,-185.298362,0.00012602,2]
[336404323,1724811043385,-1857.383039,0.00012602,2]
[336404324,1724811043395,-185.298362,0.00012602,2]
[336404325,1724811043404,-1857.383039,0.00012602,2]
[336404326,1724811043414,-151.0,0.00012602,2]
[336404327,1724811043424,-430.95021354,0.00012602,2]
[336404329,1724811043433,-151.0,0.00012602,2]
[336404331,1724811043443,-736.85,0.00012602,2]
[336404333,1724811043452,-2840.33,0.00012602,2]
[336404334,1724811043462,-631.36,0.00012602,2]
[336404336,1724811043471,-1179.1,0.00012602,2]
[336404338,1724811043480,-500.0,0.00012602,2]
[336404339,1724811043490,-500.0,0.00012602,2]
[336404340,1724811043499,-1090.28,0.00012602,2]
[336404341,1724811043508,-2710.74,0.00012602,2]
[336404343,1724811043519,-2040.01,0.00012602,2]
[336404344,1724811043529,-500.0,0.00012602,2]
[336404345,1724811043539,-6778.166501,0.00012602,2]
[336404346,1724811043548,-10747.29,0.00012602,2]
[336404347,1724811043558,-6778.166501,0.00012602,2]
[336404348,1724811043568,-151.0,0.00012602,2]
[336404349,1724811043578,-1226.115566,0.00012602,2]
[336404350,1724811043587,-151.0,0.00012602,2]
[336404351,1724811043598,-1226.115566,0.00012602,2]
[336404353,1724811043608,-2545.58,0.00012602,2]
[336404355,1724811043618,-151.0,0.00012602,2]
[336404357,1724811043627,-151.0,0.00012602,2]
[336404359,1724811043638,-151.850998,0.00012602,2]
[336404361,1724811043648,-943.135433,0.00012602,2]
[336404362,1724811043658,-151.0,0.00012602,2]
[336404363,1724811043670,-943.135433,0.00012602,2]
[336404364,1724811043681,-887.344311,0.00012602,2]
[336404365,1724811043691,-887.344311,0.00012602,2]
[336404366,1724811043702,-151.0,0.00012602,2]
[336404367,1724811043712,-500.0,0.00012602,2]
[336404368,1724811043722,-213.34740919,0.00012602,2]
[336404369,1724811043732,-151.0,0.00012602,2]
[336404370,1724811043741,-6200.24,0.00012602,2]
[336404371,1724811043751,-641.79,0.00012602,2]
[336404372,1724811043761,-500.0,0.00012602,2]
[336404374,1724811043770,-2706.11,0.00012602,2]
[336404376,1724811043781,-563.79,0.00012602,2]
[336404378,1724811043790,-666.07600313,0.00012629,2]
[336404380,1724811043800,-30000.0,0.00012682,2]
[336404381,1724811043810,-777.0011055,0.00012689,2]
[336404383,1724811043819,-180.95755433,0.00012689,2]
[336404385,1724811043830,-777.0011055,0.00012689,2]
[336404387,1724811043839,-160.59004346,0.00012689,2]
[336404389,1724811043849,-544.51359376,0.00012689,2]
[336404391,1724811043859,-2153.5114651,0.00012776,2]
[336404393,1724811043869,-154.74467129,0.00012779,2]
[336404394,1724811043878,-544.51359376,0.00012779,2]
[336404396,1724811043889,-154.63660398,0.00012779,2]
[336404398,1724811043899,-154.63660398,0.00012779,2]
[336404400,1724811043909,-21376.23554486,0.00012782,2]
[336404402,1724811043919,-154.74467129,0.00012782,2]
[336404404,1724811043930,-2144.32657805,0.00012782,2]
[336404406,1724811043940,-154.63660398,0.00012782,2]
[336404407,1724811043951,-3856.98758257,0.0001281,2]
[336404408,1724811043960,-511.78,0.0001287,2]
[336404410,1724811043970,-500.0,0.0001287,2]
[336404412,1724811043980,-500.0,0.0001287,2]
[336404414,1724811043990,-500.0,0.0001287,2]
[336404415,1724811044000,-500.0,0.0001287,2]
[336404417,1724811044011,-500.0,0.0001287,2]
[336404419,1724811044020,-500.0,0.0001287,2]
[336404421,1724811044029,-500.0,0.0001287,2]
[336404423,1724811044039,-500.0,0.0001287,2]
[336404425,1724811044048,-500.0,0.0001287,2]
[336404427,1724811044058,-500.0,0.0001287,2]
[336404428,1724811044067,-500.0,0.0001287,2]
[336404430,1724811044077,-500.0,0.0001287,2]
[336404432,1724811044087,-500.0,0.0001287,2]
[336404433,1724811044098,-500.0,0.0001287,2]
[336404435,1724811044108,-500.0,0.0001287,2]
[336404436,1724811044118,-500.0,0.0001287,2]
[336404437,1724811044127,-500.0,0.0001287,2]
[336404438,1724811044136,-500.0,0.0001287,2]
[336404439,1724811044146,-500.0,0.0001287,2]
[336404440,1724811044157,-500.0,0.0001287,2]
[336404441,1724811044167,-500.0,0.0001287,2]
[336404442,1724811044177,-500.0,0.0001287,2]
[336404443,1724811044187,-500.0,0.0001287,2]
[336404444,1724811044197,-500.0,0.0001287,2]
[336404445,1724811044207,-439.44,0.0001287,2]
[336404446,1724811044217,-500.0,0.0001287,2]
[336404447,1724811044228,-500.0,0.0001287,2]
[336404448,1724811044238,-500.0,0.0001287,2]
[336404449,1724811044249,-500.0,0.0001287,2]
[336404450,1724811044259,-500.0,0.0001287,2]
[336404451,1724811044271,-500.0,0.0001287,2]
[336404452,1724811044281,-500.0,0.0001287,2]
[336404453,1724811044290,-500.0,0.0001287,2]
[336404454,1724811044300,-500.0,0.0001287,2]
[336404455,1724811044310,-500.0,0.0001287,2]
[336404456,1724811044319,-500.0,0.0001287,2]
[336404457,1724811044329,-500.0,0.0001287,2]
[336404458,1724811044339,-500.0,0.0001287,2]
[336404459,1724811044348,-500.0,0.0001287,2]
[336404460,1724811044358,-500.0,0.0001287,2]
[336404461,1724811044367,-500.0,0.0001287,2]
[336404462,1724811044376,-500.0,0.0001287,2]
[336404463,1724811044388,-500.0,0.0001287,2]
[336404464,1724811044397,-500.0,0.0001287,2]
[336404465,1724811044407,-500.0,0.0001287,2]
[336404466,1724811044418,-500.0,0.0001287,2]
[336404467,1724811044427,-191.86,0.0001287,2]
[336404468,1724811044438,-500.0,0.0001287,2]
[336404469,1724811044449,-401.27,0.0001287,2]
[336404470,1724811044459,-500.0,0.0001287,2]
[336404471,1724811044469,-312.14192819,0.00012873,2]
[336404472,1724811044479,-500.0,0.00012873,2]
[336404473,1724811044488,-500.0,0.00012873,2]
[336404474,1724811044498,-2390.12,0.00012875,2]
[336404475,1724811044509,-819.39,0.00012875,2]
[336404476,1724811044521,-553.00908534,0.00012876,2]
[336404477,1724811044533,-381.25098882,0.00012876,2]
[336404478,1724811044543,-500.0,0.00012876,2]
[336404479,1724811044552,-870.81,0.00012876,2]
[336404480,1724811044562,-278.021856,0.00012876,2]
[336404481,1724811044576,-211.822633,0.00012876,2]
[336404482,1724811044586,-211.822633,0.00012876,2]
[336404483,1724811044596,-477.953978,0.00012876,2]
[336404484,1724811044607,-477.953978,0.00012876,2]
[336404485,1724811044619,-151.0,0.00012876,2]
[336404486,1724811044631,-500.0,0.00012876,2]
[336404487,1724811044641,-223.274645,0.00012876,2]
[336404488,1724811044651,-223.274645,0.00012876,2]
[336404489,1724811044662,-500.0,0.00012876,2]
[336404490,1724811044673,-596.856377,0.00012876,2]
[336404491,1724811044682,-596.856377,0.00012876,2]
[336404492,1724811044692,-500.0,0.00012876,2]
[336404493,1724811044703,-747.201714,0.00012876,2]
[336404495,1724811044714,-747.201714,0.00012876,2]
[336404497,1724811044724,-151.0,0.00012876,2]
[336404499,1724811044735,-151.0,0.00012876,2]
[336404501,1724811044745,-151.0,0.00012876,2]
[336404503,1724811044755,-151.0,0.00012876,2]
[336404504,1724811044765,-151.0,0.00012876,2]
[336404505,1724811044775,-816.43,0.00012876,2]
[336404506,1724811044784,-710.670337,0.00012876,2]
[336404507,1724811044794,-710.670337,0.00012876,2]
[336404508,1724811044804,-500.0,0.00012876,2]
[336404509,1724811044814,-176.425999,0.00012876,2]
[336404510,1724811044825,-549.44,0.00012876,2]
[336404511,1724811044836,-500.0,0.00012876,2]
[336404512,1724811044847,-176.425999,0.00012876,2]
[336404513,1724811044857,-549.44,0.00012876,2]
[336404514,1724811044867,-709.749602,0.00012876,2]
[336404515,1724811044887,-563.689985,0.00012876,2]
[336404516,1724811044899,-709.749602,0.00012876,2]
[336404517,1724811044910,-563.689985,0.00012876,2]
[336404518,1724811044922,-1109.51,0.00012876,2]
[336404519,1724811044937,-811.296743,0.00012876,2]
[336404520,1724811044948,-811.296743,0.00012876,2]
[336404521,1724811044958,-3703.05,0.00012876,2]
[336404522,1724811044972,-5075.24,0.00012876,2]
[336404523,1724811044983,-535.06219005,0.00012876,2]
[336404524,1724811044993,-2860.58,0.00012876,2]
[336404525,1724811045004,-185.298362,0.00012876,2]
[336404526,1724811045015,-1857.383039,0.00012876,2]
[336404527,1724811045025,-185.298362,0.00012876,2]
[336404528,1724811045035,-1857.383039,0.00012876,2]
[336404529,1724811045047,-736.85,0.00012876,2]
[336404530,1724811045058,-2840.33,0.00012876,2]
[336404531,1724811045068,-631.36,0.00012876,2]
[336404532,1724811045079,-1179.1,0.00012876,2]
[336404533,1724811045090,-500.0,0.00012876,2]
[336404534,1724811045103,-500.0,0.00012876,2]
[336404535,1724811045113,-1090.28,0.00012876,2]
[336404536,1724811045123,-2710.74,0.00012876,2]
[336404537,1724811045134,-2040.01,0.00012876,2]
[336404538,1724811045145,-500.0,0.00012876,2]
[336404539,1724811045157,-10747.29,0.00012876,2]
[336404540,1724811045168,-2545.58,0.00012876,2]
[336404541,1724811045180,-151.0,0.00012876,2]
[336404542,1724811045192,-500.0,0.00012876,2]
[336404543,1724811045202,-6200.24,0.00012876,2]
[336404544,1724811045212,-641.79,0.00012876,2]
[336404545,1724811045223,-500.0,0.00012876,2]
[336404546,1724811045234,-2706.11,0.00012876,2]
[336404547,1724811045245,-563.79,0.00012876,2]
[336404548,1724811045257,-897.974277,0.00012877,2]
[336404549,1724811045267,-19153.6534859,0.000129,2]
[336404550,1724811045277,-1226.115566,0.000129,2]
[336404551,1724811045288,-1226.115566,0.000129,2]
[336404552,1724811045298,-5621.98662692,0.000129,2]
[336404553,1724811045309,-943.135433,0.000129,2]
[336404554,1724811045319,-943.135433,0.000129,2]
[336404555,1724811045329,-887.344311,0.000129,2]
[336404556,1724811045339,-887.344311,0.000129,2]
[336404557,1724811045350,-151.0,0.000129,2]
[336404558,1724811045361,-151.0,0.000129,2]
[336404559,1724811045373,-493.77204427,0.00012971,2]
[336404560,1724811045385,-154.63660398,0.00012985,2]
[336404561,1724811045396,-154.73175921,0.00012985,2]
[336404562,1724811045407,-1213.07132828,0.00012989,2]
[336404563,1724811045419,-2999.17623735,0.00012989,2]
[336404564,1724811045430,-2168.18943453,0.00012989,2]
[336404565,1724811045441,-934.65211132,0.00012999,2]
[336404566,1724811045452,-1174.12165241,0.00012999,2]
[336404567,1724811045463,-154.96703732,0.00012999,2]
[336404568,1724811045474,-155.18088166,0.00012999,2]
[336404569,1724811045489,-3095.48272537,0.00012999,2]
[336404570,1724811045500,-196.98904117,0.00012999,2]
[336404571,1724811045511,-1368.82495036,0.00012999,2]
[336404572,1724811045523,-154.63660398,0.00012999,2]
[336404573,1724811045533,-522.73574926,0.00012999,2]
[336404574,1724811045544,-288.55434071,0.00012999,2]
[336404575,1724811045556,-265.94339308,0.00012999,2]
[336404576,1724811045567,-1608.07,0.00013,2]
[336404577,1724811045579,-863.22054056,0.00013,2]
[336404578,1724811045589,-337.0980992,0.00013,2]
[336404579,1724811045602,-2500.0,0.00013,2]
[336404580,1724811045614,-150.112233,0.00013,2]
[336404581,1724811045624,-150.112233,0.00013,2]
[336404582,1724811045635,-150.112233,0.00013,2]
[336404583,1724811045647,-150.112233,0.00013,2]
[336404584,1724811045660,-150.112233,0.00013,2]
[336404585,1724811045678,-150.112233,0.00013,2]
[336404586,1724811045690,-466.19061638,0.00013009,2]
[336404587,1724811045700,-157.49319377,0.00013025,2]
[336404588,1724811045710,-242.82682721,0.00013025,2]
[336404589,1724811045720,-197.54755828,0.00013025,2]
[336404590,1724811045731,-151.0,0.00013038,2]
[336404591,1724811045742,-151.0,0.00013038,2]
[336404592,1724811045752,-151.0,0.00013038,2]
[336404593,1724811045763,-171.473781,0.00013038,2]
[336404594,1724811045773,-529.157697,0.00013038,2]
[336404595,1724811045783,-396.277179,0.00013038,2]
[336404596,1724811045793,-529.157697,0.00013038,2]
[336404597,1724811045803,-396.277179,0.00013038,2]
[336404598,1724811045814,-1057.013351,0.00013038,2]
[336404599,1724811045824,-1057.013351,0.00013038,2]
[336404600,1724811045834,-480.622875,0.00013038,2]
[336404601,1724811045844,-480.622875,0.00013038,2]
[336404602,1724811045854,-275.805306,0.00013038,2]
[336404603,1724811045864,-151.137193,0.00013038,2]
[336404604,1724811045874,-275.805306,0.00013038,2]
[336404605,1724811045884,-151.0,0.00013038,2]
[336404606,1724811045895,-424.722358,0.00013038,2]
[336404607,1724811045907,-424.722358,0.00013038,2]
[336404608,1724811045922,-320.099356,0.00013038,2]
[336404609,1724811045938,-320.099356,0.00013038,2]
[336404610,1724811045950,-151.0,0.00013038,2]
[336404611,1724811045962,-151.0,0.00013038,2]
[336404612,1724811045973,-151.0,0.00013038,2]
[336404613,1724811045984,-245.990913,0.00013038,2]
[336404614,1724811045994,-245.990913,0.00013038,2]
[336404615,1724811046005,-838.741802,0.00013038,2]
[336404616,1724811046016,-838.741802,0.00013038,2]
[336404617,1724811046026,-151.0,0.00013038,2]
[336404618,1724811046036,-151.0,0.00013038,2]
[336404619,1724811046046,-6778.166501,0.00013038,2]
[336404620,1724811046056,-6778.166501,0.00013038,2]
[336404621,1724811046066,-151.810379,0.00013038,2]
[336404622,1724811046078,-151.0,0.00013038,2]
[336404623,1724811046089,-151.0,0.00013038,2]
[336404624,1724811046101,-154.97957624,0.00013051,2]
[336404625,1724811046116,-155.2349027,0.00013051,2]
[336404626,1724811046126,-154.98088165,0.00013051,2]
[336404627,1724811046138,-600.0,0.00013095,2]
[336404628,1724811046151,-150.112233,0.000131,2]
[336404629,1724811046163,-150.112233,0.000131,2]
[336404630,1724811046181,-151.0,0.0001314,2]
[336404631,1724811046193,-151.0,0.0001314,2]
[336404632,1724811046206,-151.0,0.0001314,2]
[336404633,1724811046216,-151.0,0.0001314,2]
[336404634,1724811046226,-2390.12,0.00013149,2]
[336404635,1724811046236,-819.39,0.00013149,2]
[336404636,1724811046246,-152.977133,0.0001315,2]
[336404637,1724811046256,-151.034685,0.0001315,2]
[336404638,1724811046266,-151.0,0.0001315,2]
[336404639,1724811046276,-151.76995,0.0001315,2]
[336404641,1724811046286,-151.76995,0.0001315,2]
[336404642,1724811046296,-151.0,0.0001315,2]
[336404643,1724811046306,-153.91056,0.0001315,2]
[336404644,1724811046317,-153.91056,0.0001315,2]
[336404645,1724811046331,-326.824401,0.0001315,2]
[336404646,1724811046342,-326.824401,0.0001315,2]
[336404647,1724811046352,-151.0,0.0001315,2]
[336404648,1724811046364,-151.0,0.0001315,2]
[336404649,1724811046374,-151.0,0.0001315,2]
[336404650,1724811046386,-500.0,0.0001315,2]
[336404651,1724811046396,-870.81,0.0001315,2]
[336404652,1724811046406,-278.021856,0.0001315,2]
[336404653,1724811046418,-211.822633,0.0001315,2]
[336404654,1724811046430,-211.822633,0.0001315,2]
[336404655,1724811046439,-477.953978,0.0001315,2]
[336404657,1724811046449,-477.953978,0.0001315,2]
[336404659,1724811046459,-151.0,0.0001315,2]
[336404661,1724811046468,-500.0,0.0001315,2]
[336404663,1724811046478,-223.274645,0.0001315,2]
[336404665,1724811046488,-223.274645,0.0001315,2]
[336404666,1724811046499,-500.0,0.0001315,2]
[336404667,1724811046511,-596.856377,0.0001315,2]
[336404668,1724811046523,-596.856377,0.0001315,2]
[336404669,1724811046537,-176.13963486,0.0001315,2]
[336404670,1724811046550,-747.201714,0.0001315,2]
[336404671,1724811046561,-747.201714,0.0001315,2]
[336404672,1724811046571,-151.0,0.0001315,2]
[336404673,1724811046582,-151.0,0.0001315,2]
[336404674,1724811046593,-151.0,0.0001315,2]
[336404675,1724811046603,-151.0,0.0001315,2]
[336404676,1724811046614,-151.0,0.0001315,2]
[336404677,1724811046625,-816.43,0.0001315,2]
[336404678,1724811046635,-710.670337,0.0001315,2]
[336404679,1724811046645,-710.670337,0.0001315,2]
[336404681,1724811046656,-500.0,0.0001315,2]
[336404683,1724811046668,-176.425999,0.0001315,2]
[336404685,1724811046680,-500.0,0.0001315,2]
[336404687,1724811046692,-176.425999,0.0001315,2]
[336404689,1724811046703,-563.689985,0.0001315,2]
[336404691,1724811046715,-563.689985,0.0001315,2]
[336404693,1724811046725,-1109.51,0.0001315,2]
[336404695,1724811046736,-3703.05,0.0001315,2]
[336404697,1724811046747,-5075.24,0.0001315,2]
[336404699,1724811046757,-2860.58,0.0001315,2]
[336404701,1724811046767,-736.85,0.0001315,2]
[336404703,1724811046778,-2840.33,0.0001315,2]
[336404704,1724811046788,-631.36,0.0001315,2]
[336404705,1724811046799,-1179.1,0.0001315,2]
[336404706,1724811046812,-500.0,0.0001315,2]
[336404707,1724811046823,-500.0,0.0001315,2]
[336404708,1724811046833,-1090.28,0.0001315,2]
[336404709,1724811046846,-2710.74,0.0001315,2]
[336404710,1724811046858,-2040.01,0.0001315,2]
[336404714,1724811046868,-500.0,0.0001315,2]
[336404716,1724811046878,-10747.29,0.0001315,2]
[336404718,1724811046889,-2545.58,0.0001315,2]
[336404720,1724811046899,-500.0,0.0001315,2]
[336404721,1724811046910,-6200.24,0.0001315,2]
[336404734,1724811047066,-641.79,0.0001315,2]
[336404735,1724811047091,-500.0,0.0001315,2]
[336404736,1724811047101,-2706.11,0.0001315,2]
[336404737,1724811047111,-563.79,0.0001315,2]
[336404738,1724811047131,-150.112233,0.000132,2]
[336404739,1724811047143,-600.0,0.00013268,2]
[336404740,1724811047154,-600.0,0.00013287,2]
[336404741,1724811047164,-600.0,0.00013287,2]
[336404742,1724811047178,-600.0,0.00013288,2]
[336404743,1724811047189,-150.112233,0.000133,2]
[336404744,1724811047201,-150.112233,0.000133,2]
[336404745,1724811047212,-600.0,0.00013315,2]
[336404746,1724811047225,-1500.0,0.00013319,2]
[336404747,1724811047238,-151.0,0.00013333,2]
[336404748,1724811047250,-424.722358,0.00013333,2]
[336404749,1724811047261,-424.722358,0.00013333,2]
[336404750,1724811047271,-151.0,0.00013333,2]
[336404751,1724811047281,-245.990913,0.00013333,2]
[336404752,1724811047291,-245.990913,0.00013333,2]
[336404753,1724811047301,-838.741802,0.00013333,2]
[336404754,1724811047311,-838.741802,0.00013333,2]
[336404755,1724811047321,-150.06,0.00013338,2]
[336404756,1724811047331,-188.381,0.00013338,2]
[336404757,1724811047341,-150.323,0.00013338,2]
[336404758,1724811047351,-522.0,0.00013338,2]
[336404759,1724811047361,-3856.98758257,0.00013341,2]
[336404760,1724811047371,-150.112233,0.000134,2]
[336404761,1724811047381,-529.157697,0.000134,2]
[336404762,1724811047391,-529.157697,0.000134,2]
[336404763,1724811047401,-1057.013351,0.000134,2]
[336404764,1724811047412,-1057.013351,0.000134,2]
[336404765,1724811047426,-480.622875,0.000134,2]
[336404766,1724811047436,-480.622875,0.000134,2]
[336404767,1724811047447,-275.805306,0.000134,2]
[336404768,1724811047457,-275.805306,0.000134,2]
[336404769,1724811047467,-320.099356,0.000134,2]
[336404770,1724811047478,-320.099356,0.000134,2]
[336404771,1724811047489,-151.0,0.000134,2]
[336404772,1724811047499,-151.0,0.000134,2]
[336404773,1724811047510,-330.610543,0.000134,4]
[336404774,1724811047520,-549.44,0.000134,2]
[336404775,1724811047530,-549.44,0.000134,2]
[336404776,1724811047541,-709.749602,0.000134,2]
[336404777,1724811047551,-709.749602,0.000134,2]
[336404778,1724811047561,-811.296743,0.000134,2]
[336404779,1724811047574,-811.296743,0.000134,2]
[336404780,1724811047586,-1857.383039,0.000134,2]
[336404781,1724811047596,-1857.383039,0.000134,2]
[336404782,1724811047605,-151.0,0.000134,2]
[336404783,1724811047616,-151.0,0.00013414,2]
[336404784,1724811047628,-151.0,0.00013414,2]
[336404785,1724811047640,-151.0,0.00013414,2]
[336404786,1724811047651,-396.277179,0.00013414,2]
[336404787,1724811047663,-396.277179,0.00013414,2]
[336404788,1724811047677,-185.298362,0.00013414,2]
[336404789,1724811047688,-185.298362,0.00013414,2]
[336404790,1724811047698,-1000.0,0.00013421,2]
[336404791,1724811047708,-1000.0,0.00013421,2]
[336404792,1724811047718,-2390.12,0.00013423,2]
[336404793,1724811047728,-819.39,0.00013423,2]
[336404794,1724811047738,-500.0,0.00013424,2]
[336404795,1724811047747,-870.81,0.00013424,2]
[336404796,1724811047757,-508.58077869,0.00013424,2]
[336404797,1724811047766,-500.0,0.00013424,2]
[336404798,1724811047776,-816.43,0.00013424,2]
[336404799,1724811047785,-500.0,0.00013424,2]
[336404800,1724811047795,-500.0,0.00013424,2]
[336404801,1724811047805,-1109.51,0.00013424,2]
[336404802,1724811047815,-3703.05,0.00013424,2]
[336404803,1724811047825,-1035.92023716,0.00013424,2]
[336404804,1724811047979,-4039.31976284,0.00013424,2]
[336404805,1724811047989,-2860.58,0.00013424,2]
[336404806,1724811047998,-736.85,0.00013424,2]
[336404807,1724811048009,-2840.33,0.00013424,2]
[336404808,1724811048020,-631.36,0.00013424,2]
[336404809,1724811048030,-1179.1,0.00013424,2]
[336404810,1724811048040,-500.0,0.00013424,2]
[336404811,1724811048050,-500.0,0.00013424,2]
[336404812,1724811048060,-1090.28,0.00013424,2]
[336404813,1724811048070,-2710.74,0.00013424,2]
[336404814,1724811048079,-2040.01,0.00013424,2]
[336404815,1724811048089,-500.0,0.00013424,2]
[336404816,1724811048099,-10747.29,0.00013424,2]
[336404817,1724811048108,-2545.58,0.00013424,2]